fUST/lending_fUST_20251208
["ID","MTS","AMOUNT","RATE_DAILY","PERIOD"]
[397202277,1765157349786,-642.46727488,8.78e-05,2]
[397202278,1765157349806,-1142.16404423,8.78e-05,2]
[397202279,1765157349826,-1784.63131911,8.78e-05,2]
[397202280,1765157349845,-2569.86909952,8.78e-05,2]
[397202281,1765157349864,-1042.52661606,8.804e-05,2]
[397202282,1765157349888,-1042.52661606,9.033e-05,2]
[397202283,1765157349909,-420.0,9.054e-05,2]
[397202284,1765157349930,-192.3866688,9.078e-05,2]
[397202285,1765157349949,-172.6546488,9.098e-05,2]
[397202286,1765157349968,-570.25127565,9.242e-05,2]
[397202287,1765157349988,-1618.58179018,9.242e-05,2]
[397202295,1765157370092,-150.0,7.358e-05,2]
[397202296,1765157370115,-244.92,8.027e-05,2]
[397202297,1765157370135,-1872.45723528,8.394e-05,2]
[397202350,1765157438098,-300.0,8.393e-05,2]
[397202351,1765157438109,-220.0,8.393e-05,2]
[397202353,1765157438119,-1713.97276472,8.394e-05,2]
[397202355,1765157438129,-1056.33,8.394e-05,2]
[397202357,1765157438139,-629.89,8.394e-05,2]
[397202359,1765157438149,-500.0,8.394e-05,2]
[397202361,1765157438160,-5133.99648525,8.394e-05,2]
[397202364,1765157438175,-259.82351475,8.394e-05,2]
[397202366,1765157438184,-298.27618525,8.394e-05,2]
[397202368,1765157438196,-1675.48381475,8.394e-05,2]
[397202370,1765157438206,-3586.43,8.668e-05,2]
[397202372,1765157438216,-284.69511412,8.668e-05,2]
[397202374,1765157438227,-771.63488588,8.668e-05,2]
[397202376,1765157438236,-488.19108612,8.668e-05,2]
[397202378,1765157438248,-141.69891388,8.668e-05,2]
[397202380,1765157438257,-500.0,8.668e-05,2]
[397202382,1765157438266,-691.91831812,8.668e-05,2]
[397202384,1765157438277,-291.13024207,8.668e-05,2]
[397202386,1765157438289,-2593.81310178,8.668e-05,2]
[397203165,1765157446037,-150.0,7.362e-05,2]
[397203167,1765157446047,-237.01,8.032e-05,2]
[397203170,1765157446056,-124.22,8.394e-05,2]
[397203947,1765157454306,154.4288633,0.00021,99]
[397215656,1765157582184,151.57,5.1e-05,2]
[397215687,1765157582478,151.57,5.4e-05,2]
[397215716,1765157582781,151.57,5.7e-05,2]
[397215740,1765157583077,151.57,6e-05,2]
[397215770,1765157583357,151.57,6.3e-05,2]
[397215802,1765157583647,151.57,6.6e-05,2]
[397222308,1765157654573,154.88,5.1e-05,2]
[397222345,1765157654930,154.88,5.7e-05,2]
[397222375,1765157655217,154.88,6.3e-05,2]
[397224160,1765157707732,151.12,5.1e-05,2]
[397224161,1765157708029,151.12,5.5e-05,2]
[397224162,1765157708308,151.12,5.9e-05,2]
[397224163,1765157708851,151.12,6.4e-05,2]
[397224169,1765157768779,151.13,5.1e-05,2]
[397224170,1765157769188,151.13,5.6e-05,2]
[397224171,1765157769514,151.13,6.1e-05,2]
[397224172,1765157769761,151.13,6.7e-05,2]
[397224188,1765157775923,151.05,5.1e-05,2]
[397224213,1765157798942,-152.61,7.128e-05,2]
[397224214,1765157798970,-270.53156313,7.164e-05,2]
[397224215,1765157798997,-151.13,7.2e-05,2]
[397224216,1765157799024,-151.13,7.7e-05,2]
[397224217,1765157799049,-305.22,7.776e-05,2]
[397224218,1765157799074,-151.13,8.2e-05,2]
[397224219,1765157799100,-1200.0,8.339e-05,2]
[397224220,1765157799125,-300.0,8.339e-05,2]
[397224221,1765157799148,-201.0,8.339e-05,2]
[397224222,1765157799175,-568.46827477,8.339e-05,2]
[397224223,1765157799206,-500.0,8.339e-05,2]
[397224224,1765157799231,-500.0,8.339e-05,2]
[397224225,1765157799253,-545.67394648,8.339e-05,2]
[397224226,1765157799276,-500.0,8.339e-05,2]
[397224227,1765157799298,-193.88753964,8.339e-05,2]
[397224228,1765157799322,-353.19035773,8.339e-05,2]
[397224229,1765157799345,-500.0,8.339e-05,2]
[397224230,1765157799367,-185.40370669,8.339e-05,2]
[397224231,1765157799389,-500.0,8.339e-05,2]
[397224232,1765157799411,-500.44678681,8.34e-05,2]
[397224233,1765157799432,-2254.45,8.34e-05,2]
[397224234,1765157799455,-875.59,8.34e-05,2]
[397224235,1765157799476,-500.65082988,8.34e-05,2]
[397224236,1765157799496,-19223.2728229,8.34e-05,2]
[397224237,1765157799518,-3497.87738546,8.341e-05,2]
[397224238,1765157799540,-4568.65617693,8.341e-05,2]
[397224239,1765157799563,-5782.20547393,8.341e-05,2]
[397224240,1765157799588,-7138.52527646,8.341e-05,2]
[397224242,1765157799610,-8628.97796893,8.341e-05,2]
[397224244,1765157799632,-1200.0,8.392e-05,2]
[397224245,1765157799653,-1123.47,8.394e-05,2]
[397224246,1765157799676,-1630.34,8.394e-05,2]
[397224247,1765157799698,-1278.77,8.394e-05,2]
[397224248,1765157799722,-2193.3,8.394e-05,2]
[397224249,1765157799745,-3248.43,8.394e-05,2]
[397224250,1765157799767,-2834.07,8.394e-05,2]
[397224251,1765157800023,-500.0,8.394e-05,2]
[397224252,1765157800045,-500.0,8.394e-05,2]
[397224253,1765157800066,-500.0,8.394e-05,2]
[397224254,1765157800089,-1455.78,8.394e-05,2]
[397224255,1765157800111,-6422.85,8.394e-05,2]
[397224256,1765157800133,-706.92,8.394e-05,2]
[397224257,1765157800156,-3630.01,8.394e-05,2]
[397224258,1765157800177,-571.03,8.394e-05,2]
[397224259,1765157800197,-1303.01,8.394e-05,2]
[397224260,1765157800221,-4743.09,8.394e-05,2]
[397224261,1765157800244,-457.83,8.424e-05,2]
[397224262,1765157800264,-2254.45,8.614e-05,2]
[397224263,1765157800285,-875.59,8.614e-05,2]
[397224264,1765157800305,-500.0,8.667e-05,2]
[397224265,1765157800326,-500.0,8.668e-05,2]
[397224266,1765157800347,-1123.47,8.668e-05,2]
[397224267,1765157800371,-1630.34,8.668e-05,2]
[397224268,1765157800395,-1278.77,8.668e-05,2]
[397224269,1765157800417,-2193.3,8.668e-05,2]
[397224270,1765157800439,-3248.43,8.668e-05,2]
[397224271,1765157800463,-2834.07,8.668e-05,2]
[397224272,1765157800483,-500.0,8.668e-05,2]
[397224273,1765157800505,-500.0,8.668e-05,2]
[397224274,1765157800526,-517.17,8.668e-05,2]
[397224275,1765157800548,-1455.78,8.668e-05,2]
[397224276,1765157800569,-6422.85,8.668e-05,2]
[397224277,1765157800591,-706.92,8.668e-05,2]
[397224278,1765157800612,-3630.01,8.668e-05,2]
[397224279,1765157800634,-571.03,8.668e-05,2]
[397224280,1765157800655,-1303.01,8.668e-05,2]
[397224281,1765157800681,-4743.09,8.668e-05,2]
[397224282,1765157800703,-3519.55,8.779e-05,2]
[397224283,1765157800724,-1001.41,8.779e-05,2]
[397224284,1765157800746,-1322.86,8.779e-05,2]
[397224285,1765157800766,-619.4,8.779e-05,2]
[397224286,1765157800789,-500.0,8.779e-05,2]
[397224287,1765157800811,-5592.26,8.779e-05,2]
[397224288,1765157800837,-6157.31189026,8.779e-05,2]
[397224306,1765157826991,151.13,5.1e-05,2]
[397224307,1765157827328,151.13,6.1e-05,2]
[397224334,1765157886999,151.13,5.1e-05,2]
[397224335,1765157887316,151.13,6.4e-05,2]
[397224402,1765157945205,151.13,5.1e-05,2]
[397224459,1765158004809,151.13,5.1e-05,2]
[397224479,1765158041618,2000.0,0.0001,3]
[397224532,1765158065789,151.13,5.1e-05,2]
[397224565,1765158125890,151.13,5.1e-05,2]
[397224568,1765158130094,2000.0,0.00013,9]
[397224598,1765158184601,151.13,5.1e-05,2]
[397224632,1765158243914,151.13,5.1e-05,2]
[397224676,1765158331106,-209.0,6.9e-05,2]
[397224677,1765158331126,-172.99624393,7.016e-05,2]
[397224706,1765158432135,-266.0885597,7.083e-05,2]
[397224707,1765158432162,-102.55096364,7.15e-05,2]
[397224708,1765158434086,-58.77903636,7.15e-05,2]
[397224709,1765158434109,-322.67,7.8e-05,2]
[397224710,1765158434129,-300.0,8.337e-05,2]
[397224711,1765158434150,-175.13298621,8.337e-05,2]
[397224712,1765158434177,-554.8145688,8.337e-05,2]
[397224765,1765158546403,250.0,9.999e-05,3]
[397224769,1765158563144,-155.17,7.129e-05,2]
[397224770,1765158563166,-265.58118581,7.777e-05,2]
[397224771,1765158571108,-44.76881419,7.777e-05,2]
[397224772,1765158571129,-300.0,8.336e-05,2]
[397224773,1765158571150,-470.05244499,8.337e-05,2]
[397224774,1765158571170,-570.0,8.337e-05,2]
[397224775,1765158571192,-1784.53,8.337e-05,2]
[397224776,1765158571211,-500.0,8.337e-05,2]
[397224777,1765158571232,-1287.14,8.337e-05,2]
[397224778,1765158571251,-781.92,8.337e-05,2]
[397224779,1765158571274,-500.0,8.337e-05,2]
[397224780,1765158571293,-1624.75,8.337e-05,2]
[397224781,1765158571316,-500.0,8.337e-05,2]
[397224782,1765158571338,-650.0,8.337e-05,2]
[397224783,1765158571360,-500.0,8.337e-05,2]
[397224784,1765158571380,-500.0,8.337e-05,2]
[397224785,1765158571399,-500.0,8.337e-05,2]
[397224786,1765158571419,-500.0,8.337e-05,2]
[397224787,1765158571443,-500.0,8.337e-05,2]
[397224788,1765158571463,-500.0,8.337e-05,2]
[397224789,1765158571482,-571.37228407,8.338e-05,2]
[397224790,1765158571502,-500.0,8.338e-05,2]
[397224791,1765158571521,-500.0,8.338e-05,2]
[397224792,1765158571541,-500.0,8.338e-05,2]
[397224793,1765158571560,-500.0,8.338e-05,2]
[397224794,1765158571580,-505.28900519,8.338e-05,2]
[397224795,1765158571600,-500.0,8.338e-05,2]
[397224796,1765158571619,-500.0,8.338e-05,2]
[397224797,1765158571638,-500.0,8.338e-05,2]
[397224798,1765158571658,-500.0,8.338e-05,2]
[397224799,1765158571677,-500.0,8.338e-05,2]
[397224800,1765158571697,-660.29,8.338e-05,2]
[397224801,1765158571715,-508.59,8.338e-05,2]
[397224802,1765158571734,-500.0,8.338e-05,2]
[397224803,1765158571755,-500.0,8.338e-05,2]
[397224804,1765158571774,-681.49,8.338e-05,2]
[397224805,1765158571793,-6694.42,8.338e-05,2]
[397224806,1765158571813,-500.0,8.338e-05,2]
[397224807,1765158571834,-9342.34,8.338e-05,2]
[397224808,1765158571853,-500.0,8.338e-05,2]
[397224809,1765158571871,-676.24,8.338e-05,2]
[397224810,1765158571892,-676.7,8.338e-05,2]
[397224811,1765158571913,-5808.37,8.338e-05,2]
[397224812,1765158571933,-1377.88,8.338e-05,2]
[397224813,1765158571955,-500.0,8.338e-05,2]
[397224814,1765158571974,-2106.46,8.338e-05,2]
[397224815,1765158571994,-884.28,8.338e-05,2]
[397224816,1765158572012,-214.4328726,8.338e-05,2]
[397224817,1765158572030,-4053.3,8.338e-05,2]
[397224818,1765158572051,-830.15,8.338e-05,2]
[397224819,1765158572070,-500.0,8.338e-05,2]
[397224820,1765158572091,-1938.02,8.338e-05,2]
[397224821,1765158572109,-500.0,8.338e-05,2]
[397224822,1765158572129,-831.32,8.338e-05,2]
[397224823,1765158572148,-500.0,8.338e-05,2]
[397224824,1765158572167,-2177.06,8.338e-05,2]
[397224825,1765158572185,-500.0,8.338e-05,2]
[397224826,1765158572203,-500.0,8.338e-05,2]
[397224827,1765158572225,-582.76,8.338e-05,2]
[397224828,1765158572245,-765.06,8.338e-05,2]
[397224829,1765158572265,-1312.37,8.338e-05,2]
[397224830,1765158572285,-501.45203975,8.338e-05,2]
[397224831,1765158572305,-780.67,8.338e-05,2]
[397224832,1765158572324,-500.0,8.338e-05,2]
[397224833,1765158572344,-7646.11,8.338e-05,2]
[397224834,1765158572364,-890.09,8.338e-05,2]
[397224835,1765158572383,-743.77,8.338e-05,2]
[397224836,1765158572404,-4516.2,8.338e-05,2]
[397224837,1765158572424,-1243.14,8.338e-05,2]
[397224838,1765158572444,-717.72,8.338e-05,2]
[397224839,1765158572466,-177.00640605,8.338e-05,2]
[397224840,1765158572485,-1378.21,8.338e-05,2]
[397224841,1765158572505,-500.0,8.338e-05,2]
[397224842,1765158572525,-500.91823678,8.338e-05,2]
[397224843,1765158572544,-500.0,8.338e-05,2]
[397224844,1765158572564,-1115.72,8.338e-05,2]
[397224845,1765158572583,-787.86,8.338e-05,2]
[397224846,1765158572602,-2770.97,8.338e-05,2]
[397224847,1765158572622,-500.67580955,8.339e-05,2]
[397224848,1765158572642,-500.0,8.339e-05,2]
[397224849,1765158572662,-1030.19,8.339e-05,2]
[397224850,1765158572681,-1473.03,8.339e-05,2]
[397224851,1765158572700,-647.28,8.339e-05,2]
[397224852,1765158572718,-1140.24,8.339e-05,2]
[397224853,1765158572738,-632.75,8.339e-05,2]
[397224854,1765158572759,-500.0,8.339e-05,2]
[397224855,1765158572778,-674.68,8.339e-05,2]
[397224856,1765158572798,-500.0,8.339e-05,2]
[397224857,1765158572816,-607.54,8.339e-05,2]
[397224858,1765158572835,-587.25,8.339e-05,2]
[397224859,1765158572854,-656.75,8.339e-05,2]
[397224860,1765158572873,-500.0,8.339e-05,2]
[397224861,1765158572892,-281.74331589,8.339e-05,2]
[397224862,1765158572912,-2327.71,8.339e-05,2]
[397224863,1765158572940,-500.0,8.339e-05,2]
[397224864,1765158572961,-500.0,8.339e-05,2]
[397224865,1765158572980,-500.0,8.339e-05,2]
[397224866,1765158573001,-1503.36,8.339e-05,2]
[397224867,1765158573022,-646.26,8.339e-05,2]
[397224868,1765158573046,-500.0,8.339e-05,2]
[397224869,1765158573066,-500.0,8.339e-05,2]
[397224870,1765158573085,-500.0,8.339e-05,2]
[397224871,1765158573106,-510.39,8.339e-05,2]
[397224872,1765158573125,-500.0,8.339e-05,2]
[397224873,1765158573145,-1071.66,8.339e-05,2]
[397224874,1765158573164,-1548.98316635,8.339e-05,2]
[397224875,1765158573184,-738.34,8.339e-05,2]
[397224876,1765158573203,-941.97,8.339e-05,2]
[397224877,1765158573223,-2937.74,8.339e-05,2]
[397224878,1765158573243,-1025.99,8.339e-05,2]
[397224879,1765158573263,-500.0,8.339e-05,2]
[397224880,1765158573286,-641.18,8.339e-05,2]
[397224881,1765158573305,-500.0,8.339e-05,2]
[397224882,1765158573327,-1612.16,8.339e-05,2]
[397224883,1765158573348,-1193.84,8.339e-05,2]
[397224884,1765158573369,-500.0,8.339e-05,2]
[397224885,1765158573392,-1136.64,8.339e-05,2]
[397224886,1765158573414,-500.0,8.339e-05,2]
[397224887,1765158573432,-500.0,8.339e-05,2]
[397224888,1765158573631,-1261.92,8.339e-05,2]
[397224889,1765158573662,-934.42,8.339e-05,2]
[397224890,1765158573681,-1371.66,8.339e-05,2]
[397224891,1765158573701,-1119.63,8.339e-05,2]
[397224892,1765158573721,-500.0,8.339e-05,2]
[397224893,1765158573740,-1353.14,8.339e-05,2]
[397224894,1765158573758,-2249.62,8.339e-05,2]
[397224895,1765158573777,-1666.34,8.339e-05,2]
[397224896,1765158573795,-500.0,8.339e-05,2]
[397224897,1765158573814,-1212.68,8.339e-05,2]
[397224898,1765158573832,-853.92,8.339e-05,2]
[397224899,1765158573853,-1276.37,8.339e-05,2]
[397224900,1765158573872,-511.342015,8.339e-05,2]
[397224901,1765158573892,-803.83,8.339e-05,2]
[397224902,1765158573911,-2249.24,8.339e-05,2]
[397224903,1765158573933,-607.96,8.339e-05,2]
[397224904,1765158573952,-519.73,8.339e-05,2]
[397224905,1765158573972,-591.6,8.339e-05,2]
[397224906,1765158573990,-1693.47,8.339e-05,2]
[397224907,1765158574014,-2246.33,8.339e-05,2]
[397224908,1765158574034,-3293.57,8.339e-05,2]
[397224909,1765158574055,-500.0,8.339e-05,2]
[397224910,1765158574074,-2048.68,8.339e-05,2]
[397224911,1765158574093,-2890.4,8.339e-05,2]
[397224912,1765158574112,-500.0,8.339e-05,2]
[397224913,1765158574137,-502.43910555,8.339e-05,2]
[397224914,1765158574157,-1160.48,8.339e-05,2]
[397224915,1765158574179,-613.52,8.339e-05,2]
[397224916,1765158574201,-500.0,8.339e-05,2]
[397224917,1765158574221,-2746.21,8.339e-05,2]
[397224918,1765158574241,-826.47,8.339e-05,2]
[397224919,1765158574261,-1473.57,8.339e-05,2]
[397224920,1765158574281,-1720.67,8.339e-05,2]
[397224921,1765158574301,-500.0,8.339e-05,2]
[397224922,1765158574322,-500.0,8.339e-05,2]
[397224923,1765158574342,-2219.23,8.339e-05,2]
[397224924,1765158574361,-6596.5,8.339e-05,2]
[397224925,1765158574384,-869.16,8.339e-05,2]
[397224926,1765158574409,-692.64,8.339e-05,2]
[397224927,1765158574429,-569.33,8.339e-05,2]
[397224928,1765158574450,-500.0,8.339e-05,2]
[397224929,1765158574470,-500.0,8.339e-05,2]
[397224930,1765158574490,-500.0,8.339e-05,2]
[397224931,1765158574512,-3739.99,8.339e-05,2]
[397224932,1765158574531,-945.56,8.339e-05,2]
[397224933,1765158574551,-627.61,8.339e-05,2]
[397224934,1765158574571,-500.0,8.339e-05,2]
[397224935,1765158574592,-928.54,8.339e-05,2]
[397224936,1765158574613,-1339.38,8.339e-05,2]
[397224937,1765158574634,-500.0,8.339e-05,2]
[397224938,1765158574654,-187.86706381,8.339e-05,2]
[397224939,1765158574674,-1370.77,8.339e-05,2]
[397224940,1765158574694,-500.0,8.34e-05,2]
[397224941,1765158574714,-154.963,8.34e-05,2]
[397224942,1765158574735,-183.08640742,8.34e-05,2]
[397224943,1765158574756,-500.0,8.34e-05,2]
[397224944,1765158574778,-1356.05,8.34e-05,2]
[397224945,1765158574800,-15237.58,8.34e-05,2]
[397224946,1765158574820,-4472.53,8.34e-05,2]
[397224947,1765158574843,-1544.98,8.34e-05,2]
[397224948,1765158574865,-4610.14,8.34e-05,2]
[397224949,1765158574889,-2277.78,8.34e-05,2]
[397224950,1765158574911,-7520.16,8.34e-05,2]
[397224951,1765158574931,-500.0,8.34e-05,2]
[397224952,1765158574966,-1665.14,8.34e-05,2]
[397224953,1765158574986,-2682.12,8.34e-05,2]
[397224954,1765158575007,-1736.26,8.34e-05,2]
[397224955,1765158575031,-1367.54,8.34e-05,2]
[397224956,1765158575053,-841.46,8.34e-05,2]
[397224957,1765158575073,-500.63317416,8.34e-05,2]
[397224958,1765158575093,-3317.64,8.34e-05,2]
[397224959,1765158575114,-2867.25,8.34e-05,2]
[397224960,1765158575135,-11776.86,8.34e-05,2]
[397224961,1765158575154,-24280.06,8.34e-05,2]
[397224962,1765158575174,-523.93,8.34e-05,2]
[397224963,1765158575193,-500.0,8.34e-05,2]
[397224964,1765158575213,-5359.29,8.34e-05,2]
[397224965,1765158575234,-739.75,8.34e-05,2]
[397224966,1765158575254,-2562.62,8.34e-05,2]
[397224967,1765158575275,-3304.28,8.34e-05,2]
[397224968,1765158575295,-500.0,8.34e-05,2]
[397224969,1765158575314,-244.9505377,8.34e-05,2]
[397224970,1765158575334,-5000.0,8.34e-05,2]
[397224971,1765158575355,-1548.98316635,8.408e-05,2]
[397224972,1765158575376,-465.52,8.426e-05,2]
[397224973,1765158575396,-1548.98316635,8.477e-05,2]
[397224974,1765158575416,-500.0,8.477e-05,2]
[397224975,1765158575436,-1548.98316635,8.545e-05,2]
[397224976,1765158575456,-1784.53,8.611e-05,2]
[397224977,1765158575476,-500.0,8.611e-05,2]
[397224978,1765158575496,-1287.14,8.611e-05,2]
[397224979,1765158575516,-781.92,8.611e-05,2]
[397224980,1765158575535,-500.0,8.611e-05,2]
[397224981,1765158575555,-1624.75,8.611e-05,2]
[397224982,1765158575574,-503.08738885,8.612e-05,2]
[397224983,1765158575596,-500.0,8.612e-05,2]
[397224984,1765158575616,-500.0,8.612e-05,2]
[397224985,1765158575638,-500.0,8.612e-05,2]
[397224986,1765158575674,-500.0,8.612e-05,2]
[397224987,1765158575695,-500.0,8.612e-05,2]
[397224988,1765158575717,-500.0,8.612e-05,2]
[397224989,1765158575739,-500.0,8.612e-05,2]
[397224990,1765158575761,-500.0,8.612e-05,2]
[397224991,1765158575782,-660.29,8.612e-05,2]
[397224992,1765158575802,-508.59,8.612e-05,2]
[397224993,1765158575823,-500.0,8.612e-05,2]
[397224994,1765158575846,-500.0,8.612e-05,2]
[397224995,1765158575867,-681.49,8.612e-05,2]
[397224996,1765158575889,-6694.42,8.612e-05,2]
[397224997,1765158575912,-500.0,8.612e-05,2]
[397224998,1765158575936,-9342.34,8.612e-05,2]
[397224999,1765158575960,-500.0,8.612e-05,2]
[397225000,1765158575982,-676.24,8.612e-05,2]
[397225001,1765158576004,-676.7,8.612e-05,2]
[397225002,1765158576031,-5808.37,8.612e-05,2]
[397225003,1765158576053,-1377.88,8.612e-05,2]
[397225004,1765158576076,-500.0,8.612e-05,2]
[397225005,1765158576099,-2106.46,8.612e-05,2]
[397225006,1765158576120,-884.28,8.612e-05,2]
[397225007,1765158576143,-4053.3,8.612e-05,2]
[397225008,1765158576164,-830.15,8.612e-05,2]
[397225009,1765158576187,-500.0,8.612e-05,2]
[397225010,1765158576208,-1938.02,8.612e-05,2]
[397225011,1765158576228,-500.0,8.612e-05,2]
[397225012,1765158576250,-831.32,8.612e-05,2]
[397225013,1765158576270,-500.0,8.612e-05,2]
[397225014,1765158576290,-2177.06,8.612e-05,2]
[397225015,1765158576310,-500.0,8.612e-05,2]
[397225016,1765158576331,-500.0,8.612e-05,2]
[397225017,1765158576353,-582.76,8.612e-05,2]
[397225018,1765158576377,-765.06,8.612e-05,2]
[397225019,1765158576399,-1312.37,8.612e-05,2]
[397225020,1765158576420,-780.67,8.612e-05,2]
[397225021,1765158576442,-500.0,8.612e-05,2]
[397225022,1765158576463,-7646.11,8.612e-05,2]
[397225023,1765158576488,-890.09,8.612e-05,2]
[397225024,1765158576510,-743.77,8.612e-05,2]
[397225025,1765158576532,-4516.2,8.612e-05,2]
[397225026,1765158576554,-1243.14,8.612e-05,2]
[397225027,1765158576577,-717.72,8.612e-05,2]
[397225028,1765158576598,-1378.21,8.612e-05,2]
[397225029,1765158576618,-500.0,8.612e-05,2]
[397225030,1765158576640,-500.0,8.612e-05,2]
[397225031,1765158576662,-1115.72,8.612e-05,2]
[397225032,1765158576683,-787.86,8.612e-05,2]
[397225033,1765158576704,-2770.97,8.612e-05,2]
[397225034,1765158576725,-500.0,8.613e-05,2]
[397225035,1765158576746,-1030.19,8.613e-05,2]
[397225036,1765158576766,-1473.03,8.613e-05,2]
[397225037,1765158576787,-647.28,8.613e-05,2]
[397225038,1765158576807,-1140.24,8.613e-05,2]
[397225039,1765158576826,-632.75,8.613e-05,2]
[397225040,1765158576847,-500.0,8.613e-05,2]
[397225041,1765158576867,-674.68,8.613e-05,2]
[397225042,1765158576887,-500.0,8.613e-05,2]
[397225043,1765158576908,-607.54,8.613e-05,2]
[397225044,1765158576929,-587.25,8.613e-05,2]
[397225045,1765158576953,-656.75,8.613e-05,2]
[397225046,1765158576973,-500.0,8.613e-05,2]
[397225047,1765158576992,-2327.71,8.613e-05,2]
[397225048,1765158577013,-500.0,8.613e-05,2]
[397225049,1765158577220,-500.0,8.613e-05,2]
[397225050,1765158577276,-500.0,8.613e-05,2]
[397225051,1765158577296,-1503.36,8.613e-05,2]
[397225052,1765158577317,-646.26,8.613e-05,2]
[397225053,1765158577338,-500.0,8.613e-05,2]
[397225054,1765158577358,-500.0,8.613e-05,2]
[397225055,1765158577379,-500.0,8.613e-05,2]
[397225056,1765158577399,-510.39,8.613e-05,2]
[397225057,1765158577419,-500.0,8.613e-05,2]
[397225058,1765158577440,-1071.66,8.613e-05,2]
[397225059,1765158577462,-738.34,8.613e-05,2]
[397225060,1765158577483,-941.97,8.613e-05,2]
[397225061,1765158577504,-2937.74,8.613e-05,2]
[397225062,1765158577526,-1025.99,8.613e-05,2]
[397225063,1765158577546,-500.0,8.613e-05,2]
[397225064,1765158577565,-641.18,8.613e-05,2]
[397225065,1765158577586,-500.0,8.613e-05,2]
[397225066,1765158577607,-1612.16,8.613e-05,2]
[397225067,1765158577626,-1193.84,8.613e-05,2]
[397225068,1765158577647,-500.0,8.613e-05,2]
[397225069,1765158577667,-1136.64,8.613e-05,2]
[397225070,1765158577686,-500.0,8.613e-05,2]
[397225071,1765158577706,-500.0,8.613e-05,2]
[397225072,1765158577726,-1261.92,8.613e-05,2]
[397225073,1765158577746,-934.42,8.613e-05,2]
[397225074,1765158577766,-1371.66,8.613e-05,2]
[397225075,1765158577786,-1119.63,8.613e-05,2]
[397225076,1765158577807,-500.0,8.613e-05,2]
[397225077,1765158577827,-1353.14,8.613e-05,2]
[397225078,1765158577850,-2249.62,8.613e-05,2]
[397225079,1765158577870,-1666.34,8.613e-05,2]
[397225080,1765158577892,-500.0,8.613e-05,2]
[397225081,1765158577912,-1212.68,8.613e-05,2]
[397225082,1765158577934,-853.92,8.613e-05,2]
[397225083,1765158577961,-1276.37,8.613e-05,2]
[397225084,1765158577983,-511.342015,8.613e-05,2]
[397225085,1765158578003,-803.83,8.613e-05,2]
[397225086,1765158578023,-2249.24,8.613e-05,2]
[397225087,1765158578047,-607.96,8.613e-05,2]
[397225088,1765158578067,-519.73,8.613e-05,2]
[397225089,1765158578090,-591.6,8.613e-05,2]
[397225090,1765158578112,-1693.47,8.613e-05,2]
[397225091,1765158578132,-2246.33,8.613e-05,2]
[397225092,1765158578155,-3293.57,8.613e-05,2]
[397225093,1765158578176,-500.0,8.613e-05,2]
[397225094,1765158578202,-2048.68,8.613e-05,2]
[397225095,1765158578226,-2890.4,8.613e-05,2]
[397225096,1765158578248,-500.0,8.613e-05,2]
[397225097,1765158578270,-1160.48,8.613e-05,2]
[397225098,1765158578292,-613.52,8.613e-05,2]
[397225099,1765158578313,-500.0,8.613e-05,2]
[397225100,1765158578334,-2746.21,8.613e-05,2]
[397225101,1765158578359,-826.47,8.613e-05,2]
[397225102,1765158578380,-1473.57,8.613e-05,2]
[397225103,1765158578403,-1720.67,8.613e-05,2]
[397225104,1765158578424,-500.0,8.613e-05,2]
[397225105,1765158578446,-500.0,8.613e-05,2]
[397225106,1765158578467,-2219.23,8.613e-05,2]
[397225107,1765158578487,-6596.5,8.613e-05,2]
[397225108,1765158578508,-869.16,8.613e-05,2]
[397225109,1765158578528,-692.64,8.613e-05,2]
[397225110,1765158578548,-569.33,8.613e-05,2]
[397225111,1765158578568,-500.0,8.613e-05,2]
[397225112,1765158578590,-500.0,8.613e-05,2]
[397225113,1765158578611,-500.0,8.613e-05,2]
[397225114,1765158578633,-3739.99,8.613e-05,2]
[397225115,1765158578653,-945.56,8.613e-05,2]
[397225116,1765158578675,-627.61,8.613e-05,2]
[397225117,1765158578695,-500.0,8.613e-05,2]